[Event "*** Titled Tuesday Blitz"]
[Site "Chess.com"]
[Date "2020.11.24"]
[Round "7"]
[White "OsorioFernando"]
[Black "FLamps8"]
[Result "0-1"]
[WhiteElo "2330"]
[BlackElo "2482"]
[TimeControl "180+1"]
[EndTime "11:35:54 PST"]
[Termination "FLamps8 won on time"]

1. e4 {[%clk 0:02:59.5]} 1... c6 {[%clk 0:02:56.1]} 2. d4 {[%clk 0:02:58]} 2...
d5 {[%clk 0:02:57]} 3. e5 {[%clk 0:02:58.1]} 3... Bf5 {[%clk 0:02:56.6]} 4. Be3
{[%clk 0:02:58.2]} 4... e6 {[%clk 0:02:56.2]} 5. Nd2 {[%clk 0:02:58.5]} 5... c5
{[%clk 0:02:54]} 6. Bb5+ {[%clk 0:02:52]} 6... Nc6 {[%clk 0:02:53.9]} 7. c3
{[%clk 0:02:49.8]} 7... Qb6 {[%clk 0:02:48.2]} 8. a4 {[%clk 0:02:21.4]} 8... a6
{[%clk 0:02:46.9]} 9. dxc5 {[%clk 0:02:20.4]} 9... Bxc5 {[%clk 0:02:41.9]} 10.
Bxc5 {[%clk 0:02:20.2]} 10... Qxc5 {[%clk 0:02:41.6]} 11. Nb3 {[%clk 0:02:19.5]}
11... Qb6 {[%clk 0:02:41.6]} 12. Bxc6+ {[%clk 0:02:16.6]} 12... bxc6 {[%clk
0:02:42.5]} 13. Nf3 {[%clk 0:02:13.5]} 13... Bg4 {[%clk 0:02:38.2]} 14. a5
{[%clk 0:02:07.2]} 14... Qb8 {[%clk 0:02:32.3]} 15. Nbd4 {[%clk 0:01:55]} 15...
Ne7 {[%clk 0:02:04.2]} 16. O-O {[%clk 0:01:39.8]} 16... Qxb2 {[%clk 0:01:37]}
17. Nxc6 {[%clk 0:01:05.3]} 17... Bxf3 {[%clk 0:00:59.6]} 18. Qa4 {[%clk
0:01:04.6]} 18... Qb5 {[%clk 0:00:56.4]} 19. Nxe7 {[%clk 0:00:52.6]} 19... Qxa4
{[%clk 0:00:52]} 20. Rxa4 {[%clk 0:00:51]} 20... Bxg2 {[%clk 0:00:52.3]} 21. Rb1
{[%clk 0:00:43]} 21... Be4 {[%clk 0:00:29.5]} 22. Rb7 {[%clk 0:00:34.8]} 22...
d4 {[%clk 0:00:13.6]} 23. Rc7 {[%clk 0:00:24.5]} 23... d3 {[%clk 0:00:13.7]} 24.
Kf1 {[%clk 0:00:09.3]} 24... Bf3 {[%clk 0:00:11.7]} 25. Ke1 {[%clk 0:00:08]}
25... Rd8 {[%clk 0:00:10.3]} 26. Kd2 {[%clk 0:00:07.9]} 26... Rd7 {[%clk
0:00:10.7]} 27. Rac4 {[%clk 0:00:06.6]} 27... Kxe7 {[%clk 0:00:10.2]} 28. Rxd7+
{[%clk 0:00:05.7]} 28... Kxd7 {[%clk 0:00:11.1]} 29. Rf4 {[%clk 0:00:06.3]}
29... Bh5 {[%clk 0:00:10.3]} 30. Kxd3 {[%clk 0:00:06.5]} 30... Bg6+ {[%clk
0:00:10.4]} 31. Ke3 {[%clk 0:00:06.3]} 31... Rc8 {[%clk 0:00:11.3]} 32. Kd2
{[%clk 0:00:05.7]} 32... Ke7 {[%clk 0:00:11.5]} 33. Rb4 {[%clk 0:00:05.8]} 33...
Rc5 {[%clk 0:00:10.4]} 34. Rb6 {[%clk 0:00:04.9]} 34... Rxa5 {[%clk 0:00:10]}
35. Rb7+ {[%clk 0:00:04.9]} 35... Kd8 {[%clk 0:00:09.6]} 36. f4 {[%clk
0:00:05.1]} 36... Ra2+ {[%clk 0:00:09.3]} 37. Ke3 {[%clk 0:00:04.9]} 37... a5
{[%clk 0:00:09.2]} 38. Rb8+ {[%clk 0:00:05]} 38... Kc7 {[%clk 0:00:08.8]} 39.
Ra8 {[%clk 0:00:05.2]} 39... a4 {[%clk 0:00:09.3]} 40. Kd4 {[%clk 0:00:04.7]}
40... a3 {[%clk 0:00:09.5]} 41. Kc5 {[%clk 0:00:04.7]} 41... Be4 {[%clk
0:00:08.4]} 42. Ra7+ {[%clk 0:00:04.4]} 42... Bb7 {[%clk 0:00:08.9]} 43. c4
{[%clk 0:00:04.6]} 43... Ra1 {[%clk 0:00:08.7]} 44. Kb4 {[%clk 0:00:04.3]} 44...
a2 {[%clk 0:00:08.8]} 45. Kc5 {[%clk 0:00:04.6]} 45... Kb8 {[%clk 0:00:04.4]}
46. Ra3 {[%clk 0:00:04.1]} 46... Kc7 {[%clk 0:00:04.6]} 47. h4 {[%clk
0:00:04.3]} 47... f6 {[%clk 0:00:04]} 48. exf6 {[%clk 0:00:03.6]} 48... gxf6
{[%clk 0:00:04.9]} 49. Ra7 {[%clk 0:00:03.6]} 49... e5 {[%clk 0:00:04.9]} 50.
fxe5 {[%clk 0:00:03.3]} 50... fxe5 {[%clk 0:00:05.8]} 51. Ra3 {[%clk 0:00:03.5]}
51... e4 {[%clk 0:00:05.5]} 52. Ra5 {[%clk 0:00:02.6]} 52... e3 {[%clk
0:00:05.2]} 0-1

[Event "*** Titled Tuesday Blitz"]
[Site "Chess.com"]
[Date "2020.11.24"]
[Round "7"]
[White "MPGM"]
[Black "yourstrulyme"]
[Result "1-0"]
[WhiteElo "2622"]
[BlackElo "2482"]
[TimeControl "180+1"]
[EndTime "11:36:00 PST"]
[Termination "MPGM won by resignation"]

1. d4 {[%clk 0:03:00.9]} 1... Nf6 {[%clk 0:02:59.8]} 2. c4 {[%clk 0:03:01.6]}
2... e6 {[%clk 0:03:00.2]} 3. Nc3 {[%clk 0:03:02.3]} 3... d5 {[%clk 0:03:00.7]}
4. cxd5 {[%clk 0:03:02.1]} 4... exd5 {[%clk 0:03:00.4]} 5. Bg5 {[%clk
0:03:02.3]} 5... Be7 {[%clk 0:03:00.8]} 6. e3 {[%clk 0:03:02.1]} 6... c6 {[%clk
0:02:59.9]} 7. Bd3 {[%clk 0:03:02.4]} 7... Nbd7 {[%clk 0:02:59.7]} 8. Nge2
{[%clk 0:03:00]} 8... O-O {[%clk 0:02:55.5]} 9. O-O {[%clk 0:03:00.4]} 9... Re8
{[%clk 0:02:56]} 10. f3 {[%clk 0:02:52.7]} 10... b5 {[%clk 0:02:43]} 11. Qd2
{[%clk 0:02:41.2]} 11... Bb7 {[%clk 0:02:38.9]} 12. Rad1 {[%clk 0:02:36.7]}
12... Nf8 {[%clk 0:02:36.4]} 13. e4 {[%clk 0:02:29.5]} 13... b4 {[%clk
0:02:13.2]} 14. Na4 {[%clk 0:02:28]} 14... dxe4 {[%clk 0:02:12.4]} 15. fxe4
{[%clk 0:02:28.1]} 15... Nxe4 {[%clk 0:02:11]} 16. Bxe7 {[%clk 0:02:08.1]} 16...
Qxe7 {[%clk 0:02:11.9]} 17. Bxe4 {[%clk 0:02:06.8]} 17... Qxe4 {[%clk
0:02:10.5]} 18. Ng3 {[%clk 0:02:07.4]} 18... Qd5 {[%clk 0:02:02.8]} 19. Nc5
{[%clk 0:02:04.1]} 19... Bc8 {[%clk 0:01:55.6]} 20. Qxb4 {[%clk 0:01:52.4]}
20... Bg4 {[%clk 0:01:52.8]} 21. Rde1 {[%clk 0:01:47]} 21... Rab8 {[%clk
0:01:51.7]} 22. Qc3 {[%clk 0:01:40.5]} 22... Red8 {[%clk 0:01:44.9]} 23. Rf4
{[%clk 0:01:29.8]} 23... Be6 {[%clk 0:01:35]} 24. b3 {[%clk 0:01:29.7]} 24...
Qd6 {[%clk 0:01:26.8]} 25. Rfe4 {[%clk 0:01:24]} 25... Bd5 {[%clk 0:01:24]} 26.
Nf5 {[%clk 0:01:12.9]} 26... Qf6 {[%clk 0:01:12.4]} 27. Ne7+ {[%clk 0:01:00.7]}
27... Kh8 {[%clk 0:01:11.8]} 28. Nxd5 {[%clk 0:00:59]} 28... Rxd5 {[%clk
0:01:08.5]} 29. Re8 {[%clk 0:00:53.2]} 29... Rxe8 {[%clk 0:00:41.5]} 30. Rxe8
{[%clk 0:00:54.1]} 30... Kg8 {[%clk 0:00:41.8]} 31. Qe3 {[%clk 0:00:18.9]} 31...
Qxd4 {[%clk 0:00:35.4]} 32. Qxd4 {[%clk 0:00:18.6]} 32... Rxd4 {[%clk
0:00:36.3]} 33. Ra8 {[%clk 0:00:18.4]} 33... Rd5 {[%clk 0:00:22.3]} 34. b4
{[%clk 0:00:18]} 34... g6 {[%clk 0:00:12.9]} 35. Rxa7 {[%clk 0:00:17.6]} 35...
Kg7 {[%clk 0:00:13.3]} 36. a4 {[%clk 0:00:17.6]} 36... Rd4 {[%clk 0:00:13]} 37.
Rb7 {[%clk 0:00:16.4]} 37... Kf6 {[%clk 0:00:11.5]} 38. a5 {[%clk 0:00:16.2]}
38... Ne6 {[%clk 0:00:10.5]} 39. Nxe6 {[%clk 0:00:14.2]} 39... fxe6 {[%clk
0:00:10.6]} 40. a6 {[%clk 0:00:14.4]} 40... Rd1+ {[%clk 0:00:10.4]} 41. Kf2
{[%clk 0:00:14.5]} 41... Ra1 {[%clk 0:00:11.3]} 42. a7 {[%clk 0:00:15]} 42... h5
{[%clk 0:00:11.2]} 43. Ke3 {[%clk 0:00:14.8]} 43... g5 {[%clk 0:00:10.6]} 44.
Kd4 {[%clk 0:00:14.6]} 44... h4 {[%clk 0:00:09.3]} 45. Kc5 {[%clk 0:00:14.1]}
45... Ke5 {[%clk 0:00:05.7]} 46. Kxc6 {[%clk 0:00:13.9]} 46... Kd4 {[%clk
0:00:05.1]} 47. Kb6 {[%clk 0:00:13.4]} 47... e5 {[%clk 0:00:05.2]} 48. Rb8
{[%clk 0:00:12.9]} 48... e4 {[%clk 0:00:03.1]} 49. a8=Q {[%clk 0:00:12.6]} 49...
Rxa8 {[%clk 0:00:03.1]} 50. Rxa8 {[%clk 0:00:13.5]} 50... e3 {[%clk 0:00:03.8]}
51. b5 {[%clk 0:00:13.6]} 51... e2 {[%clk 0:00:03.6]} 52. Re8 {[%clk 0:00:14.5]}
52... Kd3 {[%clk 0:00:04]} 53. Kc6 {[%clk 0:00:13.7]} 53... Kd2 {[%clk
0:00:04.6]} 54. b6 {[%clk 0:00:14.3]} 54... e1=Q {[%clk 0:00:04.8]} 55. Rxe1
{[%clk 0:00:14.7]} 55... Kxe1 {[%clk 0:00:05.7]} 56. b7 {[%clk 0:00:15.6]} 56...
Kf2 {[%clk 0:00:05]} 57. b8=Q {[%clk 0:00:16.5]} 57... Kxg2 {[%clk 0:00:05.6]}
58. Kd5 {[%clk 0:00:17.4]} 58... g4 {[%clk 0:00:05.3]} 59. Ke4 {[%clk
0:00:18.3]} 59... g3 {[%clk 0:00:05.2]} 60. hxg3 {[%clk 0:00:18.9]} 60... h3
{[%clk 0:00:05.4]} 61. Ke3 {[%clk 0:00:19.8]} 61... h2 {[%clk 0:00:05.2]} 62.
Qb7+ {[%clk 0:00:20.1]} 62... Kxg3 {[%clk 0:00:04]} 63. Qh1 {[%clk 0:00:19.6]}
1-0

[Event "*** Titled Tuesday Blitz"]
[Site "Chess.com"]
[Date "2020.11.24"]
[Round "7"]
[White "ZenBull"]
[Black "AniJak"]
[Result "1-0"]
[WhiteElo "2131"]
[BlackElo "2318"]
[TimeControl "180+1"]
[EndTime "11:36:06 PST"]
[Termination "ZenBull won by resignation"]

1. Nf3 {[%clk 0:03:00.9]} 1... d5 {[%clk 0:02:58.9]} 2. d4 {[%clk 0:02:56.7]}
2... Nf6 {[%clk 0:02:58.3]} 3. c4 {[%clk 0:02:56]} 3... c6 {[%clk 0:02:58.3]} 4.
Nc3 {[%clk 0:02:55.3]} 4... a6 {[%clk 0:02:55.2]} 5. Qc2 {[%clk 0:02:53.9]} 5...
Bg4 {[%clk 0:02:48.7]} 6. Ne5 {[%clk 0:02:50.8]} 6... Bh5 {[%clk 0:02:46.8]} 7.
e4 {[%clk 0:02:50.9]} 7... dxe4 {[%clk 0:02:42.4]} 8. Be3 {[%clk 0:02:41.1]}
8... e6 {[%clk 0:02:33]} 9. a3 {[%clk 0:02:20.3]} 9... Nbd7 {[%clk 0:02:19.3]}
10. Nxd7 {[%clk 0:02:16.3]} 10... Qxd7 {[%clk 0:02:18.2]} 11. Nxe4 {[%clk
0:02:16.5]} 11... Nxe4 {[%clk 0:02:17.9]} 12. Qxe4 {[%clk 0:02:16.3]} 12... Bg6
{[%clk 0:02:18.2]} 13. Qf3 {[%clk 0:02:15.6]} 13... Be7 {[%clk 0:02:17]} 14. Be2
{[%clk 0:02:13.9]} 14... O-O {[%clk 0:02:15.9]} 15. O-O {[%clk 0:02:14.1]} 15...
Bf6 {[%clk 0:02:11.8]} 16. Rfd1 {[%clk 0:02:13.8]} 16... Rfd8 {[%clk 0:02:11.3]}
17. h3 {[%clk 0:02:12]} 17... Qe7 {[%clk 0:02:06.6]} 18. Rac1 {[%clk 0:02:02.3]}
18... e5 {[%clk 0:02:06.1]} 19. dxe5 {[%clk 0:01:50.4]} 19... Qxe5 {[%clk
0:02:06.2]} 20. b4 {[%clk 0:01:37.5]} 20... h6 {[%clk 0:01:55.1]} 21. Qf4 {[%clk
0:01:22.6]} 21... Qb2 {[%clk 0:01:51.2]} 22. Rxd8+ {[%clk 0:01:19.3]} 22... Rxd8
{[%clk 0:01:50.2]} 23. Bf3 {[%clk 0:01:08.9]} 23... Re8 {[%clk 0:01:15.4]} 24.
Rd1 {[%clk 0:00:36.4]} 24... Bg5 {[%clk 0:01:13.3]} 25. Qd4 {[%clk 0:00:35.6]}
25... Qxa3 {[%clk 0:00:54.8]} 26. Bxg5 {[%clk 0:00:35.4]} 26... hxg5 {[%clk
0:00:55.4]} 27. Qd7 {[%clk 0:00:35.5]} 27... f6 {[%clk 0:00:37.9]} 28. Qxb7
{[%clk 0:00:34.1]} 28... Qb3 {[%clk 0:00:33.1]} 29. Rd7 {[%clk 0:00:32.9]} 29...
Qb1+ {[%clk 0:00:20.7]} 30. Kh2 {[%clk 0:00:32.7]} 30... Kh8 {[%clk 0:00:19.5]}
31. Rxg7 {[%clk 0:00:31.7]} 31... Rf8 {[%clk 0:00:16.2]} 32. Rc7 {[%clk
0:00:26.4]} 32... Qf5 {[%clk 0:00:15.3]} 33. Qxc6 {[%clk 0:00:16.4]} 33... Qe5+
{[%clk 0:00:15.5]} 34. g3 {[%clk 0:00:16]} 34... g4 {[%clk 0:00:13.9]} 35. hxg4
{[%clk 0:00:15.9]} 35... Qc3 {[%clk 0:00:13.5]} 36. Be4 {[%clk 0:00:12.9]} 36...
Bf7 {[%clk 0:00:07.4]} 37. Kg2 {[%clk 0:00:11.7]} 37... Qd4 {[%clk 0:00:07.3]}
38. Bd5 {[%clk 0:00:10.4]} 38... Bxd5+ {[%clk 0:00:06.2]} 39. Qxd5 {[%clk
0:00:10.7]} 39... Qxd5+ {[%clk 0:00:06.6]} 40. cxd5 {[%clk 0:00:10.7]} 40... Rd8
{[%clk 0:00:07.5]} 41. Rc5 {[%clk 0:00:08.7]} 41... Kg7 {[%clk 0:00:05.8]} 42.
Kf3 {[%clk 0:00:09]} 42... Rb8 {[%clk 0:00:05.7]} 43. Rc4 {[%clk 0:00:08.4]}
43... Rb5 {[%clk 0:00:05.6]} 44. Rd4 {[%clk 0:00:08.8]} 44... Rb7 {[%clk
0:00:05.7]} 45. Ke4 {[%clk 0:00:09.3]} 45... Rd7 {[%clk 0:00:06.6]} 46. d6
{[%clk 0:00:09.7]} 46... Kf7 {[%clk 0:00:06.9]} 47. Kd5 {[%clk 0:00:10.2]} 47...
Rd8 {[%clk 0:00:06.4]} 48. Rc4 {[%clk 0:00:08.4]} 48... f5 {[%clk 0:00:05.7]}
49. Rc7+ {[%clk 0:00:07.9]} 49... Kf6 {[%clk 0:00:05.5]} 50. gxf5 {[%clk
0:00:05.6]} 50... Kxf5 {[%clk 0:00:05.9]} 51. d7 {[%clk 0:00:05.8]} 51... Kf6
{[%clk 0:00:05.3]} 52. Kd6 {[%clk 0:00:06.2]} 52... a5 {[%clk 0:00:06.1]} 53.
Rc8 {[%clk 0:00:06.3]} 53... Rxd7+ {[%clk 0:00:06.2]} 54. Kxd7 {[%clk
0:00:06.3]} 54... axb4 {[%clk 0:00:07.1]} 55. Rb8 {[%clk 0:00:06.8]} 55... Ke5
{[%clk 0:00:08]} 56. Rxb4 {[%clk 0:00:07.3]} 56... Kf5 {[%clk 0:00:08.3]} 57.
Rf4+ {[%clk 0:00:08.2]} 57... Kg5 {[%clk 0:00:08.9]} 58. Ke6 {[%clk 0:00:08.7]}
58... Kg6 {[%clk 0:00:09.8]} 59. Ke5 {[%clk 0:00:09.6]} 59... Kg5 {[%clk
0:00:10.7]} 60. g4 {[%clk 0:00:10.1]} 60... Kg6 {[%clk 0:00:11.6]} 61. g5 {[%clk
0:00:10]} 61... Kxg5 {[%clk 0:00:12.5]} 62. Rf8 {[%clk 0:00:10]} 62... Kg6
{[%clk 0:00:12.8]} 63. Rg8+ {[%clk 0:00:10.3]} 63... Kf7 {[%clk 0:00:13.2]} 64.
Rg1 {[%clk 0:00:10.6]} 64... Ke7 {[%clk 0:00:13.4]} 65. f4 {[%clk 0:00:11.5]}
65... Kf7 {[%clk 0:00:13.6]} 66. f5 {[%clk 0:00:12.4]} 66... Ke7 {[%clk
0:00:14.3]} 67. Rg7+ {[%clk 0:00:11.7]} 67... Kf8 {[%clk 0:00:14.2]} 68. Ra7
{[%clk 0:00:11.2]} 68... Ke8 {[%clk 0:00:13.9]} 69. Ke6 {[%clk 0:00:11.4]} 69...
Kd8 {[%clk 0:00:14.8]} 70. f6 {[%clk 0:00:11.2]} 70... Kc8 {[%clk 0:00:15.7]}
71. f7 {[%clk 0:00:11.1]} 71... Kb8 {[%clk 0:00:16.6]} 1-0

[Event "*** Titled Tuesday Blitz"]
[Site "Chess.com"]
[Date "2020.11.24"]
[Round "7"]
[White "Rodalquilar"]
[Black "Piotrek1979"]
[Result "1-0"]
[WhiteElo "2669"]
[BlackElo "2512"]
[TimeControl "180+1"]
[EndTime "11:36:07 PST"]
[Termination "Rodalquilar won by resignation"]

1. d4 {[%clk 0:03:00.9]} 1... Nf6 {[%clk 0:02:58.6]} 2. Bf4 {[%clk 0:03:01.1]}
2... g6 {[%clk 0:02:55.1]} 3. e3 {[%clk 0:03:01.4]} 3... c5 {[%clk 0:02:52.8]}
4. c3 {[%clk 0:02:58.9]} 4... Qb6 {[%clk 0:02:51.5]} 5. Qb3 {[%clk 0:02:58.6]}
5... d6 {[%clk 0:02:46]} 6. Nf3 {[%clk 0:02:57.9]} 6... Bg7 {[%clk 0:02:45.2]}
7. h3 {[%clk 0:02:57.1]} 7... O-O {[%clk 0:02:44.4]} 8. Nbd2 {[%clk 0:02:57.5]}
8... Nc6 {[%clk 0:02:33.4]} 9. Be2 {[%clk 0:02:57.1]} 9... Be6 {[%clk
0:02:21.6]} 10. Qxb6 {[%clk 0:02:56.6]} 10... axb6 {[%clk 0:02:21.2]} 11. a3
{[%clk 0:02:57.5]} 11... Nd5 {[%clk 0:01:17.7]} 12. Bh2 {[%clk 0:02:57.2]} 12...
cxd4 {[%clk 0:01:16.4]} 13. exd4 {[%clk 0:02:57.1]} 13... Nc7 {[%clk 0:01:02.6]}
14. O-O {[%clk 0:02:56.7]} 14... b5 {[%clk 0:01:02.2]} 15. Rfe1 {[%clk
0:02:56.9]} 15... Bd5 {[%clk 0:01:01.6]} 16. Rad1 {[%clk 0:02:52.9]} 16... Bh6
{[%clk 0:00:58.5]} 17. Bf1 {[%clk 0:02:42.4]} 17... f5 {[%clk 0:00:58.1]} 18. h4
{[%clk 0:02:28.7]} 18... Rfe8 {[%clk 0:00:56.8]} 19. Ng5 {[%clk 0:02:23.9]}
19... Bxg5 {[%clk 0:00:56.4]} 20. hxg5 {[%clk 0:02:23.8]} 20... e5 {[%clk
0:00:48.1]} 21. dxe5 {[%clk 0:02:22.8]} 21... dxe5 {[%clk 0:00:48.4]} 22. Bxb5
{[%clk 0:02:06.5]} 22... Nxb5 {[%clk 0:00:47.9]} 23. c4 {[%clk 0:02:07]} 23...
Nc7 {[%clk 0:00:48.5]} 24. cxd5 {[%clk 0:02:06.8]} 24... Nxd5 {[%clk 0:00:49.4]}
25. Nc4 {[%clk 0:02:04.7]} 25... Nf4 {[%clk 0:00:33.2]} 26. Nxe5 {[%clk
0:02:00.6]} 26... Nxe5 {[%clk 0:00:25.8]} 27. Bxf4 {[%clk 0:02:00.7]} 27... Nc4
{[%clk 0:00:24.7]} 28. Rxe8+ {[%clk 0:01:56.2]} 28... Rxe8 {[%clk 0:00:24.7]}
29. Rd7 {[%clk 0:01:56.8]} 29... Re1+ {[%clk 0:00:23.5]} 30. Kh2 {[%clk
0:01:56.6]} 30... Re2 {[%clk 0:00:24.4]} 31. Rc7 {[%clk 0:01:06.4]} 31... Nxb2
{[%clk 0:00:23.7]} 32. Rxb7 {[%clk 0:00:48.5]} 32... Rxf2 {[%clk 0:00:22.1]} 33.
Be3 {[%clk 0:00:42.3]} 33... Re2 {[%clk 0:00:21.9]} 34. Bd4 {[%clk 0:00:42.2]}
34... Nd3 {[%clk 0:00:21.6]} 35. a4 {[%clk 0:00:28.9]} 35... Nf4 {[%clk
0:00:20.7]} 36. Kg3 {[%clk 0:00:19.8]} 36... Nxg2 {[%clk 0:00:20.8]} 37. a5
{[%clk 0:00:20.4]} 37... f4+ {[%clk 0:00:19.7]} 38. Kf3 {[%clk 0:00:19.2]} 38...
Rd2 {[%clk 0:00:20.3]} 39. a6 {[%clk 0:00:16.9]} 39... Rxd4 {[%clk 0:00:18.4]}
40. a7 {[%clk 0:00:16.7]} 40... Nh4+ {[%clk 0:00:18.5]} 41. Kg4 {[%clk
0:00:16.6]} 41... f3+ {[%clk 0:00:18.6]} 42. Kg3 {[%clk 0:00:16.3]} 42... Nf5+
{[%clk 0:00:17.6]} 43. Kxf3 {[%clk 0:00:15.9]} 43... Ra4 {[%clk 0:00:18.5]} 44.
Rb8+ {[%clk 0:00:11.4]} 44... Kg7 {[%clk 0:00:18.8]} 45. a8=Q {[%clk 0:00:12.3]}
45... Rxa8 {[%clk 0:00:18.7]} 46. Rxa8 {[%clk 0:00:13.2]} 46... h5 {[%clk
0:00:19.1]} 47. Ra7+ {[%clk 0:00:11.6]} 47... Kf8 {[%clk 0:00:18.3]} 48. Kf4
{[%clk 0:00:12.1]} 48... h4 {[%clk 0:00:18.2]} 49. Ke5 {[%clk 0:00:11.8]} 49...
h3 {[%clk 0:00:18.1]} 50. Kf6 {[%clk 0:00:07]} 50... Ke8 {[%clk 0:00:17]} 51.
Rh7 {[%clk 0:00:03.1]} 51... Ne3 {[%clk 0:00:16.7]} 52. Rxh3 {[%clk 0:00:01.7]}
52... Ng4+ {[%clk 0:00:15.3]} 53. Kxg6 {[%clk 0:00:01.4]} 53... Ke7 {[%clk
0:00:15.5]} 54. Kf5 {[%clk 0:00:01.7]} 54... Nf2 {[%clk 0:00:14.8]} 55. Rf3
{[%clk 0:00:02.1]} 55... Nd1 {[%clk 0:00:08]} 56. Ke4 {[%clk 0:00:02.7]} 56...
Nb2 {[%clk 0:00:08.4]} 57. g6 {[%clk 0:00:02.6]} 57... Nc4 {[%clk 0:00:08.9]}
58. Kd4 {[%clk 0:00:02.5]} 58... Nd2 {[%clk 0:00:09.1]} 59. Rf2 {[%clk
0:00:02.4]} 59... Nb3+ {[%clk 0:00:08.6]} 60. Kc4 {[%clk 0:00:02]} 60... Na5+
{[%clk 0:00:08.6]} 61. Kc3 {[%clk 0:00:02.5]} 61... Nb7 {[%clk 0:00:09.5]} 62.
g7 {[%clk 0:00:03]} 62... Nc5 {[%clk 0:00:10]} 63. g8=Q {[%clk 0:00:03.9]} 63...
Ne4+ {[%clk 0:00:10.6]} 64. Kd4 {[%clk 0:00:04.5]} 64... Nxf2 {[%clk 0:00:10.8]}
65. Qh7+ {[%clk 0:00:04.7]} 65... Kf6 {[%clk 0:00:10.8]} 66. Qh4+ {[%clk
0:00:04.9]} 66... Kf5 {[%clk 0:00:11.1]} 67. Qxf2+ {[%clk 0:00:05.8]} 67... Kg4
{[%clk 0:00:11.9]} 68. Ke3 {[%clk 0:00:06.2]} 1-0

[Event "*** Titled Tuesday Blitz"]
[Site "Chess.com"]
[Date "2020.11.24"]
[Round "7"]
[White "RestartingChess"]
[Black "JulAnt"]
[Result "1/2-1/2"]
[WhiteElo "2543"]
[BlackElo "2450"]
[TimeControl "180+1"]
[EndTime "11:36:07 PST"]
[Termination "Game drawn - insufficient material"]

1. e4 {[%clk 0:03:00.9]} 1... c5 {[%clk 0:02:59.9]} 2. Nf3 {[%clk 0:03:01.4]}
2... e6 {[%clk 0:03:00]} 3. b3 {[%clk 0:03:01.4]} 3... Nf6 {[%clk 0:02:58.1]} 4.
e5 {[%clk 0:03:01.7]} 4... Nd5 {[%clk 0:02:58.4]} 5. c4 {[%clk 0:03:02.5]} 5...
Nb6 {[%clk 0:02:58.2]} 6. Bb2 {[%clk 0:03:03.2]} 6... g6 {[%clk 0:02:58.5]} 7.
Nc3 {[%clk 0:02:59.9]} 7... Bg7 {[%clk 0:02:56.5]} 8. Ne4 {[%clk 0:03:00.1]}
8... O-O {[%clk 0:02:53.8]} 9. Nf6+ {[%clk 0:03:00.6]} 9... Kh8 {[%clk
0:02:52.1]} 10. h4 {[%clk 0:03:00.9]} 10... d6 {[%clk 0:02:41.3]} 11. h5 {[%clk
0:02:01.7]} 11... dxe5 {[%clk 0:02:38.9]} 12. Nxh7 {[%clk 0:02:02.1]} 12... Kxh7
{[%clk 0:02:33.5]} 13. hxg6+ {[%clk 0:02:02.5]} 13... Kg8 {[%clk 0:02:32.2]} 14.
gxf7+ {[%clk 0:02:00.1]} 14... Rxf7 {[%clk 0:02:31.6]} 15. Qc2 {[%clk
0:02:00.6]} 15... Nc6 {[%clk 0:02:17.1]} 16. Qh7+ {[%clk 0:01:34.9]} 16... Kf8
{[%clk 0:02:17]} 17. Nh4 {[%clk 0:01:32.9]} 17... Ne7 {[%clk 0:02:03.1]} 18. Nf3
{[%clk 0:01:01.1]} 18... Nc6 {[%clk 0:01:54.1]} 19. Nh4 {[%clk 0:01:01.4]} 19...
Qf6 {[%clk 0:01:42.9]} 20. Ng6+ {[%clk 0:00:48.1]} 20... Ke8 {[%clk 0:01:43.2]}
21. f4 {[%clk 0:00:37.6]} 21... Nd4 {[%clk 0:01:37.2]} 22. Qg8+ {[%clk
0:00:34.3]} 22... Rf8 {[%clk 0:01:21]} 23. Nxf8 {[%clk 0:00:34.5]} 23... Qxf8
{[%clk 0:01:21.1]} 24. Qxf8+ {[%clk 0:00:27.3]} 24... Kxf8 {[%clk 0:01:21]} 25.
O-O-O {[%clk 0:00:25.9]} 25... exf4 {[%clk 0:01:16.9]} 26. Bd3 {[%clk
0:00:26.1]} 26... Bd7 {[%clk 0:01:15.6]} 27. Ba3 {[%clk 0:00:25.4]} 27... Rc8
{[%clk 0:01:12.3]} 28. Rdf1 {[%clk 0:00:25.1]} 28... e5 {[%clk 0:00:42.3]} 29.
g3 {[%clk 0:00:25.4]} 29... f3 {[%clk 0:00:42.7]} 30. Be4 {[%clk 0:00:25.5]}
30... Ke7 {[%clk 0:00:33.2]} 31. Rh7 {[%clk 0:00:22.2]} 31... Rg8 {[%clk
0:00:29.8]} 32. Bxf3 {[%clk 0:00:22.5]} 32... Nxf3 {[%clk 0:00:29.2]} 33. Rxf3
{[%clk 0:00:22.9]} 33... Kd6 {[%clk 0:00:22]} 34. Rf7 {[%clk 0:00:21.8]} 34...
Bf8 {[%clk 0:00:22]} 35. Rf6+ {[%clk 0:00:19.5]} 35... Kc7 {[%clk 0:00:21.2]}
36. Bb2 {[%clk 0:00:17.7]} 36... Bd6 {[%clk 0:00:21.1]} 37. Rhh6 {[%clk
0:00:18.1]} 37... Nc8 {[%clk 0:00:18.6]} 38. Rxd6 {[%clk 0:00:18.5]} 38... Nxd6
{[%clk 0:00:18.8]} 39. Bxe5 {[%clk 0:00:19.4]} 39... Re8 {[%clk 0:00:08.6]} 40.
Bxd6+ {[%clk 0:00:19.6]} 40... Kc6 {[%clk 0:00:07.7]} 41. Bf4+ {[%clk
0:00:19.8]} 41... Re6 {[%clk 0:00:07.8]} 42. Rxe6+ {[%clk 0:00:20.1]} 42... Bxe6
{[%clk 0:00:08.3]} 43. Kc2 {[%clk 0:00:20.8]} 43... Bf5+ {[%clk 0:00:08.4]} 44.
Kc3 {[%clk 0:00:21.3]} 44... a6 {[%clk 0:00:07.1]} 45. d4 {[%clk 0:00:20.8]}
45... cxd4+ {[%clk 0:00:07]} 46. Kxd4 {[%clk 0:00:21.7]} 46... Kd7 {[%clk
0:00:06.6]} 47. a3 {[%clk 0:00:22.2]} 47... Ke6 {[%clk 0:00:06.9]} 48. Kc5
{[%clk 0:00:22.5]} 48... Be4 {[%clk 0:00:07.1]} 49. b4 {[%clk 0:00:17.2]} 49...
Bf3 {[%clk 0:00:07.5]} 50. a4 {[%clk 0:00:16.7]} 50... Kd7 {[%clk 0:00:06.9]}
51. b5 {[%clk 0:00:16.1]} 51... axb5 {[%clk 0:00:07.1]} 52. cxb5 {[%clk
0:00:17]} 52... Bg2 {[%clk 0:00:06.7]} 53. Kb6 {[%clk 0:00:17.3]} 53... Kc8
{[%clk 0:00:06.6]} 54. g4 {[%clk 0:00:16.7]} 54... Be4 {[%clk 0:00:06.2]} 55. g5
{[%clk 0:00:16.7]} 55... Bg6 {[%clk 0:00:06.2]} 56. a5 {[%clk 0:00:16.9]} 56...
Be4 {[%clk 0:00:05.3]} 57. a6 {[%clk 0:00:17.2]} 57... bxa6 {[%clk 0:00:05.7]}
58. bxa6 {[%clk 0:00:18.1]} 58... Kd7 {[%clk 0:00:04.4]} 59. Ka7 {[%clk
0:00:15.3]} 59... Kc8 {[%clk 0:00:04.3]} 60. Kb6 {[%clk 0:00:14.1]} 60... Kd7
{[%clk 0:00:04.7]} 61. g6 {[%clk 0:00:14.7]} 61... Bxg6 {[%clk 0:00:04.2]} 62.
Ka7 {[%clk 0:00:05.7]} 62... Be4 {[%clk 0:00:04.3]} 63. Kb8 {[%clk 0:00:06.6]}
63... Ke6 {[%clk 0:00:04.2]} 64. a7 {[%clk 0:00:07.5]} 64... Kf5 {[%clk
0:00:04.4]} 65. a8=Q {[%clk 0:00:08.4]} 65... Bxa8 {[%clk 0:00:04.5]} 1/2-1/2